bitfinex-derivatives/quotes_ETHF0:USTF0_20241023
["timestamp","ask_amount","ask_price","bid_price","bid_amount"]
[1729654161824,6.1978,2604.2,2603.9,0.34581]
[1729654162129,4.07516897,2604.1,2603.9,0.34581]
[1729654162722,4.07516897,2604.1,2604.0,0.34581]
[1729654162917,3.2078,2604.2,2603.7,2.99]
[1729654163124,2.99,2604.5,2603.7,3.7302]
[1729654163426,4.15707832,2604.4,2603.8,0.34583]
[1729654163625,4.15707832,2604.4,2604.2,0.34578]
[1729654163923,4.15707832,2604.4,2604.3,0.34577]
[1729654164125,2.99,2604.8,2604.0,3.2078]
[1729654164328,3.3357,2604.8,2604.5,0.34573]
[1729654164516,4.2388295,2604.6,2604.5,0.34573]
[1729654164720,0.34574,2604.5,2604.1,0.34579]
[1729654164921,2.99,2604.5,2604.4,0.34575]
[1729654165328,2.99,2604.7,2604.0,3.2078]
[1729654165525,0.511,2605.1,2604.5,0.34574]
[1729654165526,0.3457,2604.9,2604.5,0.34574]
[1729654165717,2.99,2605.0,2604.0,2.99]
[1729654165718,3.33568,2605.0,2604.7,0.34571]
[1729654165917,4.20837022,2604.8,2604.7,0.34571]
[1729654166119,3.2078,2605.1,2604.6,3.6903]
[1729654166327,2.99,2605.4,2604.7,0.5286]
[1729654166525,2.99,2605.4,2604.9,3.2078]
[1729654166824,4.15273872,2605.3,2604.9,3.2078]
[1729654167120,2.99,2605.4,2604.9,3.2078]
[1729654167326,2.99,2605.2,2605.0,0.34567]
[1729654167525,3.33566,2605.2,2604.9,3.2078]
[1729654167727,3.99987203,2605.1,2604.9,3.55348]
[1729654167928,3.99987203,2605.1,2604.9,3.2078]
[1729654168323,3.99987203,2605.1,2604.9,3.55348]
[1729654168724,3.99987203,2605.1,2604.9,3.55349]
[1729654169032,3.99987203,2605.1,2605.0,0.34567]
[1729654169221,0.34563,2605.4,2604.9,3.55348]
[1729654169423,0.34563,2605.4,2605.0,0.34567]
[1729654169725,4.65152756,2605.4,2605.0,0.34567]
[1729654169931,0.34564,2605.3,2604.9,3.55348]
[1729654170332,2.99,2605.3,2604.9,3.2078]
[1729654170734,0.34567,2605.0,2604.9,3.2078]
[1729654171136,4.70306006,2605.0,2604.9,3.2078]
[1729654172223,4.70306006,2605.0,2604.7,0.5286]
[1729654172740,0.34569,2604.9,2604.7,0.5286]
[1729654172935,4.70307006,2605.0,2604.7,0.5286]
[1729654173230,4.35739006,2605.0,2604.9,0.34569]
[1729654173430,4.06004577,2605.2,2604.8,3.2078]
[1729654173626,3.2078,2605.3,2605.1,0.34566]
[1729654174022,4.06004577,2605.2,2605.1,0.34566]
[1729654174229,0.3456,2605.6,2605.1,3.2078]
[1729654174430,0.3456,2605.6,2605.3,0.34563]
[1729654174431,4.78031443,2605.6,2605.3,0.34563]
[1729654174635,0.3456,2605.6,2605.3,0.34563]
[1729654174838,0.34561,2605.5,2605.3,0.34563]
[1729654175034,4.43471443,2605.5,2605.3,0.34563]
[1729654175341,4.78031443,2605.6,2605.4,0.86082]
[1729654175637,0.3456,2605.6,2605.4,0.5152]
[1729654176235,0.34561,2605.5,2605.4,0.5152]
[1729654176540,4.39436681,2605.6,2605.4,0.5152]
[1729654176733,4.39436681,2605.6,2605.4,0.86082]
[1729654177036,3.2078,2605.7,2605.4,0.5152]
[1729654177232,3.2078,2605.7,2605.6,0.34559]
[1729654177432,3.2078,2606.2,2605.4,7.5606]
[1729654177733,4.4287553,2606.3,2605.7,6.1978]
[1729654177936,0.34557,2605.9,2605.7,3.2078]
[1729654178133,2.99,2606.3,2605.7,3.2078]
[1729654178339,10.38440054,2606.6,2605.7,3.2078]
[1729654178539,4.18660054,2606.2,2605.7,3.2078]
[1729654178833,3.2078,2606.3,2605.7,3.2078]
[1729654179035,3.2078,2606.3,2605.8,0.34556]
[1729654179036,0.34555,2606.0,2605.8,0.34556]
[1729654180033,0.34556,2605.9,2605.7,3.55337]
[1729654180234,4.18660054,2606.2,2605.7,3.2078]
[1729654180434,4.18660054,2606.2,2605.9,0.34555]
[1729654180735,0.34553,2606.1,2605.9,0.34555]
[1729654180932,4.18660054,2606.2,2605.7,3.2078]
[1729654181138,3.2078,2606.3,2606.1,0.34553]
[1729654181333,3.5533,2606.3,2606.2,0.5132]
[1729654181531,3.5533,2606.3,2606.2,0.85872]
[1729654181732,3.5533,2606.3,2606.2,0.5132]
[1729654181933,3.2078,2606.3,2606.2,4.69552]
[1729654182435,3.2078,2606.3,2606.2,4.35]
[1729654182638,3.2078,2606.3,2606.2,4.69552]
[1729654183136,0.34548,2606.5,2606.2,4.35]
[1729654183442,0.34548,2606.5,2606.2,0.8587]
[1729654183640,4.39681522,2606.8,2606.3,3.2078]
[1729654183846,0.34549,2606.4,2606.3,3.2078]
[1729654184039,4.39681522,2606.7,2606.3,3.2078]
[1729654184237,0.34549,2606.4,2606.3,3.2078]
[1729654184437,0.34549,2606.5,2606.3,3.2078]
[1729654184641,0.34549,2606.4,2606.3,3.2078]
[1729654184851,3.85355,2607.0,2606.3,3.2078]
[1729654185042,0.34548,2606.5,2606.3,3.5533]
[1729654185244,0.34548,2606.5,2606.3,3.2078]
[1729654185440,0.34548,2606.5,2606.3,3.5533]
[1729654185841,0.34547,2606.6,2606.4,0.34549]
[1729654186144,4.40548072,2606.9,2606.5,2.99]
[1729654186348,4.40548072,2606.9,2606.5,3.33547]
[1729654186646,4.40548072,2606.9,2606.3,3.2078]
[1729654186647,7.32626554,2607.0,2606.3,3.2078]
[1729654186836,0.34549,2606.4,2606.3,3.2078]
[1729654188242,0.34548,2606.5,2606.3,3.2078]
[1729654188438,0.34548,2606.5,2606.3,3.5533]
[1729654189143,4.33626554,2606.9,2606.3,3.2078]
[1729654189348,0.34547,2606.6,2606.4,0.34548]
[1729654190045,0.34547,2606.6,2606.3,3.55329]
[1729654190741,0.86353,2607.0,2606.4,0.34548]
[1729654190948,0.34546,2606.6,2606.4,0.34548]
[1729654191353,5.06518466,2607.0,2606.3,3.2078]
[1729654191652,5.06518466,2607.0,2606.3,3.55329]
[1729654191653,0.34547,2606.6,2606.3,3.55329]
[1729654191839,0.34548,2606.5,2606.3,3.55329]
[1729654192239,5.06518466,2607.0,2606.3,3.2078]
[1729654192538,5.06518466,2607.0,2606.4,0.34548]
[1729654192539,0.34547,2606.6,2606.4,0.34548]
[1729654192739,0.34542,2606.9,2606.4,0.34548]
[1729654193040,4.24606132,2606.8,2606.3,3.2078]
[1729654193243,4.24606132,2606.8,2606.5,0.34547]
[1729654193244,0.34545,2606.7,2606.5,0.34547]
[1729654194543,4.07132,2607.1,2606.5,3.2078]
[1729654194744,0.34546,2606.7,2606.5,3.55327]
[1729654195147,4.65657496,2607.0,2606.8,0.34543]
[1729654195342,0.34543,2606.9,2606.7,0.34544]
[1729654195541,0.34543,2606.9,2606.5,3.2078]
[1729654195542,0.34544,2606.8,2606.6,0.34545]
[1729654195741,4.55350208,2606.8,2606.6,0.34545]
[1729654195952,0.34544,2606.8,2606.6,0.34545]
[1729654196353,4.20806208,2606.7,2606.6,0.34546]
[1729654196855,0.34544,2606.8,2606.6,0.34546]
[1729654197054,0.5032,2607.3,2606.5,3.2078]
[1729654197347,4.42213011,2606.7,2606.5,3.2078]
[1729654197550,4.35782765,2607.1,2606.5,3.2078]
[1729654197849,0.34545,2606.7,2606.6,0.34546]
[1729654198049,0.34546,2606.6,2606.5,3.2078]
[1729654199352,0.34546,2606.6,2606.4,0.34548]
[1729654199649,0.34546,2606.6,2606.5,3.2078]
[1729654200045,4.69035712,2606.6,2606.5,3.2078]
[1729654200546,0.3455,2606.3,2606.2,3.2078]
[1729654200745,0.3455,2606.3,2605.1,0.74420974]
[1729654200746,0.34563,2605.3,2605.2,1.1325]
[1729654200953,0.86391,2605.9,2605.2,1.1325]
[1729654200954,2.99,2605.8,2605.2,1.1325]
[1729654201165,0.34563,2605.4,2605.2,1.1325]
[1729654201353,0.34563,2605.3,2605.2,1.1325]
[1729654201549,7.98209749,2605.8,2605.2,1.1325]
[1729654201859,4.99209749,2605.8,2605.2,1.47814]
[1729654202157,0.34563,2605.4,2605.2,1.47814]
[1729654202957,0.3456,2605.6,2605.3,0.34563]
[1729654203150,4.99209749,2605.8,2605.2,1.1325]
[1729654203351,0.34558,2605.7,2605.2,1.47814]
[1729654203550,0.34562,2605.5,2605.2,1.47814]
[1729654203956,0.34562,2605.5,2605.3,0.34563]
[1729654204455,4.35518778,2605.6,2605.2,1.1325]
[1729654204765,0.34563,2605.3,2605.2,1.1325]
[1729654204957,3.2078,2605.4,2604.6,2.99]
[1729654205151,0.34569,2604.9,2604.6,0.34571]
[1729654205353,0.34569,2604.9,2604.4,2.99]
[1729654205556,0.34569,2604.9,2604.7,0.34571]
[1729654206050,0.34568,2605.0,2604.7,0.34571]
[1729654206452,4.31031007,2604.9,2604.7,0.34571]
[1729654206850,4.31031007,2605.0,2604.7,2.99]
[1729654207052,0.34565,2605.3,2604.9,2.99]
[1729654207254,0.34565,2605.3,2605.0,0.34567]
[1729654207549,0.34566,2605.2,2604.9,3.33568]
[1729654207852,0.34567,2605.1,2604.7,2.99]
[1729654208057,0.34566,2605.2,2604.9,0.34568]
[1729654208355,4.31598435,2605.2,2604.8,0.6075]
[1729654208751,0.34567,2605.1,2604.9,0.34569]
[1729654208950,0.34567,2605.1,2604.8,0.6075]
[1729654208951,4.31598435,2605.2,2604.8,0.6075]
[1729654209146,3.2078,2605.3,2604.9,2.99]
[1729654209353,0.34566,2605.1,2604.9,3.33568]
[1729654209549,0.34566,2605.2,2605.0,0.34567]
[1729654209853,3.2078,2605.3,2604.8,0.6075]
[1729654210055,3.2078,2605.0,2604.8,0.6075]
[1729654210354,4.76917101,2604.9,2604.8,0.6075]
[1729654210658,4.76917101,2604.9,2604.7,0.6267]
[1729654210659,0.3457,2604.8,2604.7,0.6267]
[1729654211150,4.42348101,2604.8,2604.4,0.6075]
[1729654211351,0.34574,2604.5,2604.4,0.6075]
[1729654211555,0.34577,2604.3,2604.2,0.6415]
[1729654212156,0.34577,2604.3,2604.0,0.5936]
[1729654212157,0.34579,2604.1,2604.0,0.5936]
[1729654212455,0.34582,2604.0,2603.7,0.99024]
[1729654212660,3.2078,2604.1,2603.7,1.238]
[1729654213061,0.34583,2603.9,2603.7,1.238]
[1729654213757,0.34583,2603.9,2603.7,1.58384]
[1729654214062,0.34582,2604.0,2603.7,1.58384]
[1729654214763,0.34582,2604.0,2603.8,0.34583]
[1729654214963,3.2078,2604.1,2603.9,3.33581]
[1729654215461,3.5536,2604.1,2603.9,2.99]
[1729654215658,3.2078,2604.1,2603.9,2.99]
[1729654215862,3.2078,2604.1,2604.0,0.34581]
[1729654216161,3.2078,2604.1,2603.9,2.99]
[1729654216162,3.2078,2604.1,2603.9,3.33581]
[1729654216755,0.6118,2604.5,2604.0,0.3458]
[1729654216756,0.34578,2604.3,2604.0,0.3458]
[1729654217065,0.34577,2604.3,2604.0,0.3458]
[1729654217365,0.34577,2604.3,2604.1,3.33579]
[1729654217766,4.05574317,2604.4,2604.1,2.99]
[1729654218155,0.34577,2604.3,2604.1,3.33579]
[1729654218358,4.05574317,2604.4,2603.9,2.99]
[1729654218659,4.40150317,2604.4,2604.2,0.34578]
[1729654218860,0.34574,2604.6,2604.3,3.33577]
[1729654219062,0.34574,2604.6,2604.4,0.93475]
[1729654219260,0.34574,2604.6,2604.4,1.56405]
[1729654219559,4.0727941,2604.7,2604.6,0.34573]
[1729654219775,3.2078,2605.0,2604.5,6.8292]
[1729654219965,3.2078,2605.4,2604.9,2.99]
[1729654220262,4.11623338,2605.2,2604.7,2.99]
[1729654220465,4.11623338,2605.2,2605.1,0.34566]
[1729654220665,0.34564,2605.3,2605.1,0.34566]
[1729654220862,3.2078,2605.4,2605.0,1.219]
[1729654221054,4.59052737,2605.2,2605.0,1.56467]
[1729654221258,4.59052737,2605.2,2605.1,0.34566]
[1729654221259,0.34565,2605.2,2605.1,0.34566]
[1729654221560,0.34565,2605.2,2605.0,1.56467]
[1729654221965,3.2078,2605.4,2605.0,1.219]
[1729654222262,0.34566,2605.1,2605.0,1.219]
[1729654222664,0.34572,2604.7,2604.5,0.34574]
[1729654222858,0.34573,2604.6,2604.4,0.34575]
[1729654223160,0.34573,2604.6,2604.3,1.2076]
[1729654223161,4.1936833,2604.6,2604.3,1.2076]
[1729654223467,5.15340047,2604.7,2604.0,2.99]
[1729654223660,0.34576,2604.4,2604.1,0.34579]
[1729654223869,0.34575,2604.5,2604.2,3.33578]
[1729654224158,5.30825,2604.9,2604.2,2.99]
[1729654224159,0.34576,2604.4,2604.2,2.99]
[1729654224364,4.63485047,2604.4,2604.2,2.99]
[1729654224661,0.34576,2604.4,2604.2,2.99]
[1729654224865,0.34576,2604.4,2604.2,3.33578]
[1729654225162,0.34577,2604.3,2604.2,2.99]
[1729654225369,3.2078,2604.6,2604.0,3.3358]
[1729654225673,4.07589635,2604.3,2603.9,4.4359]
[1729654225856,4.07589635,2604.5,2603.9,4.4359]
[1729654225857,0.34581,2604.0,2603.9,4.4359]
[1729654226060,4.07589635,2604.2,2603.9,4.4359]
[1729654226263,0.34581,2604.0,2603.9,4.4359]
[1729654226565,0.3458,2604.1,2603.9,4.4359]
[1729654226768,6.1978,2604.6,2603.9,4.4359]
[1729654226969,4.31392284,2604.0,2603.9,4.78172]
[1729654227362,0.34579,2604.1,2603.9,4.78172]
[1729654227672,4.40260369,2604.0,2603.9,4.78172]
[1729654227865,4.40260369,2604.0,2603.9,7.77172]
[1729654229058,1.2362,2604.9,2603.9,14.2559]
[1729654229259,0.34573,2604.6,2604.4,0.34575]
[1729654229465,4.61870526,2604.7,2604.5,0.34574]
[1729654229656,0.34572,2604.7,2604.5,0.34574]
[1729654230261,4.444,2604.9,2604.3,6.1978]
[1729654230467,5.30824,2604.9,2604.1,2.99]
[1729654230772,0.34576,2604.4,2604.1,2.99]
[1729654231071,4.41790107,2604.8,2604.1,3.33579]
[1729654231265,0.34577,2604.3,2604.1,3.33579]
[1729654231561,5.28218107,2604.8,2604.1,2.99]
[1729654231771,0.34578,2604.2,2604.1,2.99]
[1729654232164,4.12853391,2604.2,2603.9,3.6002]
[1729654232365,4.47432391,2604.2,2604.0,0.34581]
[1729654232668,0.34579,2604.2,2603.9,3.94601]
[1729654232870,4.07535886,2604.1,2604.0,0.3458]
[1729654233368,4.42110886,2604.5,2604.2,0.34577]
[1729654233667,0.34575,2604.5,2604.3,0.34576]
[1729654233872,0.34575,2604.5,2604.3,0.98247]
[1729654234168,0.34574,2604.5,2604.3,0.6367]
[1729654234668,0.34575,2604.4,2604.3,0.6367]
[1729654235265,4.12546066,2604.5,2604.3,0.6367]
[1729654235468,4.12546066,2604.5,2604.0,0.6367]
[1729654235672,0.34579,2604.2,2604.0,0.6367]
[1729654235874,0.34579,2604.1,2603.9,0.34581]
[1729654236189,4.76417406,2604.1,2603.9,0.34581]
[1729654236470,4.76417406,2604.1,2603.7,6.1978]
[1729654236471,5.07188406,2604.3,2603.7,6.1978]
[1729654236676,4.13935851,2604.0,2603.7,6.1978]
[1729654236875,0.34579,2604.1,2603.9,0.34581]
[1729654237177,0.99928,2604.3,2604.1,0.34579]
[1729654237469,4.3521314,2604.2,2604.1,0.34579]
[1729654237676,4.3521314,2604.2,2603.7,4.20352264]
[1729654237872,0.34581,2604.1,2603.6,3.59]
[1729654238075,0.34579,2604.1,2603.8,0.34582]
[1729654238277,0.34581,2604.0,2603.8,0.34582]
[1729654238475,0.34582,2603.9,2603.7,0.34584]
[1729654238875,4.3521314,2604.2,2603.8,0.34583]
[1729654238876,0.34581,2604.0,2603.8,0.34583]
[1729654239077,0.34586,2603.6,2603.4,4.54940264]
[1729654239371,0.34586,2603.6,2603.2,1.99144528]
[1729654239372,4.03493031,2603.5,2603.2,0.99572264]
[1729654239572,0.3459,2603.3,2603.1,5.79724264]
[1729654239978,0.3459,2603.3,2603.1,7.79152]
[1729654240379,1.2634,2603.6,2603.1,4.4556]
[1729654240685,4.65286736,2603.5,2603.3,0.3459]
[1729654240979,4.65287736,2603.5,2603.3,0.3459]
[1729654241381,4.30699736,2603.5,2603.3,0.3459]
[1729654241582,4.30699736,2603.5,2603.1,4.4556]
[1729654241778,4.30699736,2603.5,2603.4,0.34589]
[1729654241970,3.2078,2603.7,2603.6,0.34586]
[1729654242986,3.2078,2603.7,2603.6,4.18666]
[1729654243189,0.6286,2604.4,2603.6,3.8408]
[1729654243384,0.34578,2604.3,2604.0,0.3458]
[1729654243688,0.34578,2604.2,2604.0,0.3458]
[1729654243883,0.34578,2604.3,2604.0,0.3458]
[1729654244077,0.6286,2604.4,2604.1,0.34579]
[1729654244078,0.97436,2604.4,2604.1,0.34579]
[1729654244479,0.6286,2604.4,2604.1,0.34579]
[1729654244786,3.2078,2604.5,2604.4,0.34575]
[1729654245085,3.2078,2604.5,2604.0,3.69]
[1729654245391,3.2078,2604.5,2604.3,0.34576]
[1729654245585,3.55355,2604.5,2604.3,0.34576]
[1729654245787,3.55355,2604.5,2604.0,3.69]
[1729654245788,3.2078,2604.5,2604.4,0.34575]
[1729654247199,0.34573,2604.6,2604.4,0.34575]
[1729654247588,0.34574,2604.5,2604.4,0.34575]
[1729654247783,0.34574,2604.5,2604.3,0.34576]
[1729654247988,4.16547829,2604.6,2604.5,0.34574]
[1729654248190,0.6355,2604.7,2604.3,4.296]
[1729654248490,0.98121,2604.7,2604.3,0.606]
[1729654248694,0.98121,2604.7,2604.5,0.34573]
[1729654249393,0.6355,2604.7,2604.6,0.34573]
[1729654250093,0.6355,2604.7,2604.3,0.606]
[1729654250094,3.2078,2605.2,2604.7,0.34571]
[1729654250285,3.2078,2605.2,2605.1,0.34566]
[1729654252397,3.2078,2605.2,2605.1,4.18406]
[1729654252692,3.2078,2605.8,2605.1,4.18406]
[1729654252888,0.6271,2606.2,2605.3,3.69]
[1729654253091,4.15222772,2606.0,2605.9,0.34555]
[1729654253294,0.6271,2606.2,2605.6,0.6337]
[1729654253599,4.68490267,2606.1,2605.8,0.34556]
[1729654254193,4.33936267,2606.1,2605.6,0.6337]
[1729654254391,4.68489267,2606.1,2605.9,0.34555]
[1729654254889,4.68489267,2606.1,2605.6,0.6337]
[1729654254890,4.68489267,2606.1,2605.8,0.34556]
[1729654255094,4.33936267,2606.1,2605.6,0.6337]
[1729654255296,4.33936267,2606.1,2605.9,0.34555]
[1729654255799,0.34555,2606.0,2605.8,0.34556]
[1729654256299,4.33936267,2606.1,2605.6,0.6337]
[1729654256499,4.33936267,2606.1,2605.9,0.34554]
[1729654256800,4.68489267,2606.1,2605.9,0.34554]
[1729654257005,4.33936267,2606.1,2605.6,0.6337]
[1729654257901,4.33936267,2606.1,2606.0,0.34554]
[1729654258505,0.97262,2606.2,2606.0,0.34554]
[1729654258904,0.6271,2606.2,2605.6,0.6337]
[1729654259201,0.6271,2606.2,2606.0,0.34553]
[1729654259405,0.97262,2606.2,2605.6,0.6337]
[1729654259609,0.6271,2606.2,2606.0,0.34554]
[1729654259903,0.6271,2606.2,2606.0,0.34553]
[1729654259904,0.97262,2606.2,2606.0,0.34553]
[1729654260100,0.97262,2606.2,2605.6,1.2638]
[1729654260303,0.6271,2606.2,2605.9,0.34555]
[1729654260805,0.34553,2606.1,2605.9,0.34555]
[1729654261095,0.34553,2606.1,2605.6,1.2638]
[1729654261096,0.97262,2606.2,2606.0,0.34554]
[1729654261695,0.97262,2606.2,2605.9,0.34556]
[1729654261896,0.6271,2606.2,2606.1,0.34553]
[1729654262091,0.97263,2606.2,2605.9,0.34554]
[1729654262396,0.34554,2606.1,2605.9,0.34554]
[1729654262603,0.97262,2606.2,2606.0,0.34554]
[1729654263303,0.34557,2605.8,2605.6,0.97929]
[1729654263496,0.34559,2605.6,2605.5,3.2078]
[1729654263804,0.34562,2605.4,2605.2,0.34564]
[1729654264002,4.33511489,2605.6,2605.0,3.69]
[1729654264003,0.6249,2605.5,2605.0,3.69]
[1729654264198,1.24,2605.5,2604.9,4.4108]
[1729654264500,4.33511489,2605.4,2605.2,0.34564]
[1729654264697,1.58562,2605.5,2605.2,3.0]
[1729654264902,1.58562,2605.5,2605.2,3.34564]
[1729654265199,0.34563,2605.3,2605.2,3.0]
[1729654265605,3.99720166,2605.4,2605.1,0.34565]
[1729654265799,3.99720166,2605.4,2605.2,0.34564]
[1729654266001,3.99720166,2605.4,2605.2,3.34564]
[1729654266500,3.99720166,2605.4,2605.0,3.34567]
[1729654266698,3.99720166,2605.4,2604.9,3.2078]
[1729654266903,0.34567,2605.1,2604.9,3.55348]
[1729654267107,0.34566,2605.2,2604.9,3.55348]
[1729654267306,3.99720166,2605.4,2604.8,4.2835]
[1729654267505,4.4478,2605.5,2604.8,4.2835]
[1729654267506,4.17684499,2605.1,2604.8,4.2835]
[1729654267816,0.34566,2605.2,2604.9,0.34568]
[1729654268303,0.34566,2605.1,2604.9,0.34568]
[1729654268699,4.26851688,2605.4,2604.8,3.6607]
[1729654268901,4.61418688,2605.0,2604.6,0.34572]
[1729654269110,4.26851688,2605.0,2604.8,3.0]
[1729654269318,0.34567,2605.1,2604.9,0.34569]
[1729654269801,0.34567,2605.1,2604.8,3.34569]
[1729654270001,0.34569,2604.9,2604.8,3.0]
[1729654270202,4.41249363,2605.0,2604.5,6.2078]
[1729654270506,1.267,2604.9,2604.6,0.34572]
[1729654270807,1.267,2604.9,2604.8,3.3457]
[1729654271514,0.34566,2605.2,2604.9,0.34568]
[1729654271714,0.6155,2605.3,2604.8,3.0]
[1729654271902,0.34567,2605.1,2604.9,0.34569]
[1729654272609,0.34568,2605.0,2604.8,3.0]
[1729654273109,0.34567,2605.1,2604.9,0.34569]
[1729654273307,4.89608448,2605.3,2605.2,0.34565]
[1729654273609,0.6155,2605.3,2605.2,0.34565]
[1729654274313,3.2078,2605.4,2605.3,0.34563]
[1729654274513,3.8233,2605.8,2605.3,3.8384]
[1729654274805,0.6263,2605.9,2605.5,3.0]
[1729654275001,0.6107,2606.2,2605.9,0.34555]
[1729654275002,1.57913,2606.2,2605.9,0.34555]
[1729654275198,1.57913,2606.2,2605.7,3.0]
[1729654275410,4.21335951,2606.1,2605.9,3.0]
[1729654275718,0.6229,2606.2,2605.9,0.34555]
[1729654276010,0.96842,2606.2,2606.0,0.34554]
[1729654276409,0.6229,2606.2,2605.7,3.0]
[1729654276606,0.96842,2606.2,2606.0,0.34553]
[1729654277009,0.96842,2606.2,2605.7,3.0]
[1729654277010,0.34553,2606.1,2605.9,0.34555]
[1729654277216,0.34553,2606.1,2605.7,3.0]
[1729654277217,0.6229,2606.2,2605.7,3.0]
[1729654277401,0.96842,2606.2,2605.7,3.0]
[1729654277604,0.96842,2606.2,2606.0,0.34553]
[1729654277911,0.34553,2606.1,2605.9,0.34555]
[1729654278411,0.6229,2606.2,2605.9,0.34555]
[1729654278617,0.34556,2605.9,2605.7,3.34557]
[1729654278811,0.34557,2605.8,2605.6,4.19969]
[1729654279009,0.34558,2605.7,2605.5,3.6157]
[1729654279206,0.6597,2606.1,2605.3,0.34562]
[1729654279207,0.3456,2605.6,2605.3,0.34562]
[1729654279405,3.2078,2605.9,2605.1,4.9298]
[1729654279620,3.2078,2605.9,2605.3,3.0]
[1729654279621,0.34558,2605.8,2605.3,3.0]
[1729654279909,0.3456,2605.6,2605.4,0.34562]
[1729654280218,0.34559,2605.7,2605.5,0.3456]
[1729654280401,4.06398541,2605.8,2605.5,0.3456]
[1729654280605,0.34557,2605.8,2605.5,0.3456]
[1729654280808,4.76383701,2605.8,2605.6,0.34559]
[1729654281004,4.41826701,2605.8,2605.6,3.34559]
[1729654281209,3.2078,2605.9,2605.6,3.0]
[1729654281411,0.34555,2606.0,2605.7,0.34557]
[1729654281610,0.34555,2606.0,2605.8,0.34557]
[1729654281810,4.46693757,2606.0,2605.8,0.34557]
[1729654282215,4.12138757,2606.0,2605.8,0.34557]
[1729654282419,1.00524,2606.1,2605.8,0.34557]
[1729654282714,0.34555,2606.0,2605.8,0.34557]
[1729654283603,0.6597,2606.1,2605.8,3.0]
[1729654283807,1.00523,2606.1,2605.9,0.34554]
[1729654284018,1.00523,2606.1,2605.8,3.0]
[1729654284019,0.6597,2606.1,2605.8,3.0]
[1729654284311,1.00523,2606.1,2605.9,0.34556]
[1729654284515,1.00523,2606.1,2605.8,3.0]
[1729654284516,0.6597,2606.1,2606.0,0.34554]
[1729654285109,0.34559,2605.7,2605.2,3.0]
[1729654285315,0.34559,2605.7,2605.5,0.3456]
[1729654285513,0.3456,2605.6,2605.2,3.0]
[1729654285708,0.633,2605.9,2605.1,3.2078]
[1729654285905,0.96071,2605.5,2605.0,3.6372]
[1729654286310,0.6151,2605.5,2605.2,0.34564]
[1729654286517,0.34563,2605.4,2605.2,0.34564]
[1729654287116,0.34564,2605.3,2605.1,0.34566]
[1729654287317,0.34564,2605.3,2604.8,3.2078]
[1729654287318,4.08865628,2605.3,2604.8,6.2078]
[1729654287518,0.34566,2605.1,2604.9,0.34568]
[1729654288521,0.34566,2605.1,2604.8,3.0]
[1729654289019,0.34566,2605.1,2604.9,0.34568]
[1729654292827,0.6495,2605.2,2604.9,0.34568]
[1729654293124,7.20420018,2605.0,2604.2,6.2078]
[1729654293419,7.20420018,2605.0,2604.2,6.55357]
[1729654293420,0.34575,2604.5,2604.2,6.55357]
[1729654293619,3.2078,2604.8,2604.2,6.55357]
[1729654293824,0.34575,2604.5,2604.2,6.55357]
[1729654294619,0.34575,2604.5,2604.2,6.2078]
[1729654294820,0.34575,2604.5,2604.3,0.34576]
[1729654296025,0.34575,2604.5,2604.2,6.55357]
[1729654296426,4.4537276,2604.7,2604.3,0.34576]
[1729654296427,0.34574,2604.6,2604.3,0.34576]
[1729654296827,4.4537276,2604.7,2604.3,0.34576]
[1729654297023,0.34575,2604.5,2604.3,0.34576]
[1729654297325,0.34574,2604.5,2604.3,0.34577]
[1729654297527,4.4537276,2604.7,2604.3,0.34577]
[1729654297928,0.34574,2604.5,2604.3,0.34577]
[1729654298538,0.34574,2604.6,2604.3,0.34577]
[1729654299034,3.2078,2604.8,2604.4,6.8392]
[1729654299222,3.2078,2604.8,2604.7,3.34571]
[1729654299428,0.6495,2605.2,2604.7,3.0]
[1729654299726,0.6495,2605.2,2604.9,0.34568]
[1729654299727,4.00389111,2605.1,2604.9,0.34568]
[1729654299931,4.00389111,2605.1,2605.0,0.34567]
[1729654300131,1.00474,2605.3,2605.1,0.34566]
[1729654300330,0.6591,2605.3,2605.1,0.34566]
[1729654300731,0.6591,2605.3,2604.9,3.6777]
[1729654300732,0.6591,2605.3,2605.2,0.34565]
[1729654300930,0.6912,2605.6,2605.1,3.0]
[1729654301134,1.0368,2605.6,2605.4,0.34562]
[1729654302033,0.6912,2605.6,2605.1,6.2078]
[1729654302335,0.6912,2605.6,2605.0,0.34566]
[1729654302336,4.04048056,2605.5,2605.0,0.34566]
[1729654302635,4.04048056,2605.5,2604.9,4.02338]
[1729654302636,0.34567,2605.1,2604.9,4.02338]
[1729654303241,0.34567,2605.1,2604.9,0.6777]
[1729654303428,0.34567,2605.1,2604.9,1.02339]
[1729654303828,4.5617,2605.4,2604.8,0.6767]
[1729654304032,0.34565,2605.2,2604.6,1.61872]
[1729654304335,4.22329314,2605.3,2604.6,1.273]
[1729654304537,0.34567,2605.1,2604.8,0.34569]
[1729654304837,4.22329314,2605.3,2604.8,0.34569]
[1729654305132,0.34568,2605.0,2604.8,0.34569]
[1729654305336,0.34567,2605.1,2604.8,0.34569]
[1729654305535,4.22329314,2605.3,2604.8,0.34569]
[1729654305833,4.22329314,2605.3,2604.7,3.34571]
[1729654306044,0.34569,2604.9,2604.7,3.34571]
[1729654306234,0.34568,2605.0,2604.8,0.3457]
[1729654306939,0.34569,2604.9,2604.7,3.34571]
[1729654307637,0.34568,2605.0,2604.8,0.3457]
[1729654308031,0.34568,2605.0,2604.7,3.0]
[1729654308231,0.34569,2604.9,2604.7,3.34571]
[1729654309033,0.34567,2605.0,2604.8,0.34569]